Cogmind - Beta 13 @@@ ROGUE MODE // 2024.06.15 @ 22:38:12 Player: MarKhan Result: Destroyed by G-47 Trooper with Particle Gun Performance ------------- Evolutions (2) 1000 Regions Visited (4) 800 Robots Destroyed (38) 190 Value Destroyed (839) 839 Prototype IDs (5) 100 Alien Tech Used (0) 0 Bonus (11) 11 TOTAL SCORE: 2940 Bonus ------- High Alert Combat Kills 11 Cogmind --------- Core Integrity 0/550 Matter 269/300 Energy 84/100 System Corruption 1% Temperature Cool (9) Movement Core (50) Location -8/Storage Parts ------- > --- POWER (1) -------- (None) > --- PROPULSION (5) --- (None) > --- UTILITY (3) ------ Hacking Suite Hacking Suite > --- WEAPON (2) ------- (None) > --- INVENTORY (5) ---- Deuterium Engine Improved Terrain Scanner Improved Terrain Scan Processor Hacking Suite Spread Laser Peak State ------------ > --- POWER ------------ Nuclear Core > --- PROPULSION ------- Carbon-fiber Leg Wheel Compact Wheel Compact Wheel Flight Unit > --- UTILITY ---------- Small Storage Unit Structural Scanner Hacking Suite > --- WEAPON ----------- Improved Assault Rifle Mini Grenade Launcher > --- INVENTORY -------- Improved Ion Engine Deuterium Engine Visual Processing Unit Improved Terrain Scan Processor Medium Armor Plating Improved Light Armor Plating Hacking Suite Hacking Suite [Rating: 22] Favorites ----------- Power Light Ion Engine Engine Light Ion Engine Power Core Nuclear Core Propulsion Wheel Leg Carbon-fiber Leg Wheel Wheel Flight Unit Flight Unit Utility Small Storage Unit Device Structural Scanner Storage Small Storage Unit Processor Melee Analysis Suite Hackware Hacking Suite Protection Improved Light Armor Plating Weapon Improved Assault Rifle Energy Gun Heavy EM Shotgun Energy Cannon Advanced Beam Cannon Ballistic Gun Improved Assault Rifle Launcher Mini Grenade Launcher Build | -11 -10 -9 -8 -8 ------- Run | Yrd Mat Mat Mat Sto Slots Evolved 4 | . . 2 2 . Power . | . . . . . Propulsion 3 | . . 1 2 . Utility 1 | . . 1 . . Weapon . | . . . . . Parts Attached 45 | 8 1 13 10 13 Power 5 | 1 . 1 1 2 Engine 3 | 1 . 1 . 1 Core 2 | . . . 1 1 Reactor . | . . . . . Propulsion 19 | 3 . 7 3 6 Treads . | . . . . . Leg 1 | . . . . 1 Wheel 17 | 3 . 7 2 5 Hover . | . . . . . Flight 1 | . . . 1 . Utility 10 | 2 . 1 4 3 Device 3 | 1 . 1 1 . Storage 2 | 1 . . . 1 Processor 2 | . . . 2 . Hackware 2 | . . . 1 1 Protection 1 | . . . . 1 Artifact . | . . . . . Weapon 11 | 2 1 4 2 2 Energy Gun 2 | . . . 1 1 Energy Cannon 1 | . . 1 . . Ballistic Gun 5 | 2 . 2 1 . Ballistic Cannon . | . . . . . Launcher 3 | . 1 1 . 1 Special Weapon . | . . . . . Impact Weapon . | . . . . . Slashing Weapon . | . . . . . Piercing Weapon . | . . . . . Special Melee Weapon . | . . . . . Unidentified Prototypes 3 | . . 2 1 . Corrupted Parts 1 | . . . 1 . System Corruption 1 | . . . 1 . Parts Lost 22 | . . 1 7 14 Power 2 | . . . . 2 Propulsion 11 | . . . 4 7 Utility 4 | . . . 1 3 Weapon 5 | . . 1 2 2 Highest Loss Streak 8 | . . 1 7 8 To Critical Strikes . | . . . . . Average Slot Usage (%) 87 | . 100 96 93 70 Engine 6 | . 14 11 . 1 Core 3 | . . . 8 6 Wheel 27 | . 28 30 40 15 Flight 2 | . . . . 6 Device 14 | . 14 21 15 6 Storage 10 | . 14 11 9 9 Hackware 3 | . . . . 9 Energy Cannon 4 | . . 8 8 . Ballistic Gun 10 | . 24 10 5 6 Launcher 3 | . 3 2 . 6 Naked Turns . | . . . . . Heaviest Build 22 | 12 14 17 22 18 Greatest Support 52 | 26 20 30 50 52 Greatest Overweight (x) 4 | . . . 3 4 Average Overweight (x) . | . . . . . Largest Inventory Capacity 8 | 8 8 8 8 8 Average Capacity 7 | 7 8 8 8 7 Most Carried 8 | 7 8 8 8 8 Average Carried 7 | 3 7 7 7 7 Final Capacity 8 | 8 8 8 8 5 Final Carried 8 | 7 8 8 7 5 Class Distribution -------------------- 72% | Mutant 27% | Scavenger-Mutant Dominant Class ---------------- Mutant | -10/Materials Mutant | -9/Materials Mutant | -8/Materials Mutant | -8/Storage Resources | -11 -10 -9 -8 -8 ----------- Run | Yrd Mat Mat Mat Sto Matter Collected 858 | 302 19 232 24 281 Remotely . | . . . . . Salvage Created 859 | 137 58 198 161 305 Parts 59 | 9 7 16 8 19 Haulers Intercepted 1 | . . . 1 . Recyclers Shooed 1 | . 1 . . . Parts Field Recycled . | . . . . . Retrieved Matter . | . . . . . Parts Self-Destructed . | . . . . . Prevented . | . . . . . Kills | -11 -10 -9 -8 -8 ------- Run | Yrd Mat Mat Mat Sto Combat Hostiles Destroyed 23 | . 5 6 4 8 Guns 2 | . . . 2 . Cannons 5 | . . 3 2 . AOE 16 | . 5 3 . 8 Classes Destroyed 11 | 2 3 3 1 2 Worker 2 | . . . . 2 Builder 1 | . . . . 1 Tunneler 3 | 3 . . . . Hauler 1 | . . . 1 . Recycler 2 | 1 . . . 1 Mechanic 1 | . . 1 . . Operator 3 | . . 1 . 2 Watcher 2 | . 1 1 . . Swarmer 10 | . 3 4 3 . Grunt 7 | . 2 . . 5 Sentry 6 | . . 2 1 3 Best Kill Streak 7 | 4 6 5 4 7 Combat Bots Only 5 | . 5 4 3 5 Max Kills in Single Turn 4 | 1 2 4 1 2 Gunslinging . | . . . . . Exploded 3 | . 2 3 . 2 Melee . | . . . . . Uniques/NPCs Destroyed . | . . . . . Combat | -11 -10 -9 -8 -8 -------- Run | Yrd Mat Mat Mat Sto Hostile Shots Fired 215 | . 18 26 68 103 Missed 64 | . 10 8 23 23 Damage Taken 2281 | 2 73 220 648 1338 Core 579 | . 12 16 114 437 Absorbed by Shields . | . . . . . Regen/Repaired (Parts) 14 | . . . 14 . Core Remaining (%) 97 | 100 95 96 . . Volleys Fired 76 | 7 10 18 14 27 Largest 2 | 2 2 2 2 2 Hottest 118 | 40 50 98 118 53 Shots Fired 125 | 14 19 36 22 34 Gun 75 | 14 14 17 8 22 Cannon 32 | . . 18 14 . Launcher 18 | . 5 1 . 12 Special . | . . . . . Kinetic 69 | 14 14 17 2 22 Thermal 32 | . . 18 14 . Explosive 18 | . 5 1 . 12 Electromagnetic 6 | . . . 6 . Robot Hit Streak 13 | 5 7 5 13 5 Robot Miss Streak 4 | 2 1 4 2 2 Penetration Max . | . . . . . Secondary Targets . | . . . . . Shots Hit Robots 73 | 7 10 17 17 22 Core Hits 60 | 5 11 11 6 27 Critical Kills . | . . . . . Critical Parts Destroyed . | . . . . . Critical Strikes . | . . . . . Melee Attacks . | . . . . . Impact . | . . . . . Slashing . | . . . . . Piercing . | . . . . . Sneak Attacks . | . . . . . Combat Hostiles . | . . . . . Follow-up Attacks . | . . . . . Damage Inflicted 2596 | 88 489 499 425 1095 Guns 616 | 83 82 76 157 218 Cannons 409 | . . 223 186 . Explosions 1545 | . 407 200 74 864 Melee . | . . . . . Ramming 26 | 5 . . 8 13 Kinetic 490 | 83 82 76 31 218 Thermal 483 | . . 223 260 . Explosive 1471 | . 407 200 . 864 Electromagnetic 126 | . . . 126 . Impact . | . . . . . Slashing . | . . . . . Piercing . | . . . . . Highest Corruption 2 | . . 2 1 1 Average Corruption 1 | . . 2 1 1 Corruption Purged . | . . . . . Corruption Blocked . | . . . . . Effects 1 | . . . . 1 Message Errors 1 | . . . . 1 Overload Shots . | . . . . . Overflow Damage 56 | . 18 19 1 18 Projectiles 1 | . . . 1 . Explosions 55 | . 18 19 . 18 Melee . | . . . . . Knockbacks . | . . . . . Impact . | . . . . . Kinetic . | . . . . . Secondary . | . . . . . Self-Inflicted Damage 191 | 2 . 39 29 121 Shots 8 | . . 1 1 6 Rammed 4 | 1 . . 2 1 Targets Rammed 4 | 1 . . 2 1 Kicked . | . . . . . Crushed . | . . . . . Highest Temperature 147 | . 2 123 147 37 Average Temperature 44 | . 2 39 59 14 Received Heat Transfer 954 | . 18 27 261 648 Siege Activations . | . . . . . Robots Corrupted . | . . . . . Combat Hostiles . | . . . . . Parts Fried 1 | . . . 1 . Impact Corruptions . | . . . . . Robots Melted . | . . . . . Combat Hostiles . | . . . . . Parts Melted 3 | . . 3 . . Heat Transferred 890 | . . 407 483 . Parts Sabotaged . | . . . . . Parts Stolen . | . . . . . Parts Stripped . | . . . . . Power Chain Reactions 1 | . . . 1 . Alert | -11 -10 -9 -8 -8 ------- Run | Yrd Mat Mat Mat Sto Peak Influence 420 | 20 191 290 245 420 Initial 122 | . 13 80 122 86 Average 159 | 6 51 185 158 219 Maximum Alert Level 2 | . . 1 1 2 Low Security (%) 70 | 100 100 60 71 60 Level 1 23 | . . 39 28 22 Level 2 5 | . . . . 17 Level 3 . | . . . . . Level 4 . | . . . . . Level 5 . | . . . . . High Security . | . . . . . Max Security . | . . . . . Squads Dispatched 4 | . 1 1 1 1 Investigation 1 | . . . . 1 Extermination . | . . . . . Reinforcement 3 | . 1 1 1 . Assault . | . . . . . Garrison . | . . . . . Intercept . | . . . . . Searches Triggered . | . . . . . Construction Impeded . | . . . . . Haulers Reinforced . | . . . . . Active Scanning Responses . | . . . . . Cargo Convoy Interrupts . | . . . . . Stealth | -11 -10 -9 -8 -8 --------- Run | Yrd Mat Mat Mat Sto Distress Signals 4 | . 1 1 1 1 Communications Jammed . | . . . . . Distress Signals . | . . . . . Times Spotted 47 | . 8 10 12 17 Peak Tracking Total 8 | . 4 5 8 6 Tactical Retreats 3 | . . . 1 2 Traps | -11 -10 -9 -8 -8 ------- Run | Yrd Mat Mat Mat Sto Traps Triggered 1 | . . 1 . . Indirectly . | . . . . . Trap Hack Attempts . | . . . . . Triggered . | . . . . . Disarmed . | . . . . . Reprogrammed . | . . . . . Reused . | . . . . . Traps Extracted . | . . . . . Installed . | . . . . . Triggered . | . . . . . Machines | -11 -10 -9 -8 -8 ---------- Run | Yrd Mat Mat Mat Sto Machines Disabled 2 | . . . . 2 Max in Single Turn 1 | . . . . 1 Garrison Access 1 | . . . 1 . Machines Repaired . | . . . . . Machines Dismantled . | . . . . . Machines Sabotaged . | . . . . . Overloaded Fab Kills . | . . . . . Hacking | -11 -10 -9 -8 -8 --------- Run | Yrd Mat Mat Mat Sto Machines Accessed 11 | . . 2 3 6 Terminals 9 | . . 2 1 6 Fabricators . | . . . . . Repair Stations 1 | . . . 1 . Recycling Units . | . . . . . Scanalyzers . | . . . . . Garrison Access 1 | . . . 1 . Total Hacks 29 | . . 6 6 17 Successful 18 | . . 2 5 11 Failed 11 | . . 4 1 6 Catastrophic . | . . . . . Database Lockouts . | . . . . . Manual 17 | . . 6 1 10 Terminals 25 | . . 6 2 17 Fabricators . | . . . . . Repair Stations 2 | . . . 2 . Recycling Units . | . . . . . Scanalyzers . | . . . . . Garrison Access 2 | . . . 2 . Terminal Hacks 8 | . . . 1 7 Record 1 | . . . . 1 Prototype ID Bank 1 | . . . . 1 Open Door 2 | . . . . 2 Emergency Access Points 1 | . . . . 1 Terminal Index 1 | . . . . 1 Alert Level 2 | . . . 1 1 Fabricator Hacks . | . . . . . Repair Station Hacks 2 | . . . 2 . Scan Component 1 | . . . 1 . Repair 1 | . . . 1 . Recycling Unit Hacks . | . . . . . Scanalyzer . | . . . . . Garrison Access Hacks 1 | . . . 1 . Seal Access 1 | . . . 1 . Unauthorized Hacks 7 | . . 2 1 4 Terminals 7 | . . 2 1 4 Assimilate 1 | . . . . 1 Botnet 5 | . . 2 1 2 Operators 1 | . . . . 1 Fabricators . | . . . . . Repair Stations . | . . . . . Recycling Units . | . . . . . Scanalyzers . | . . . . . Garrison Access . | . . . . . Data Cores Recovered 2 | . . 1 . 1 Used . | . . . . . Hacking Detections 8 | . . 2 2 4 Full Trace Events 1 | . . . . 1 Feedback Events . | . . . . . Feedback Blocked . | . . . . . Robot Schematics Acquired . | . . . . . Robots Built . | . . . . . Authchips . | . . . . . Time . | . . . . . Total Robot Build Rating . | . . . . . Part Schematics Acquired . | . . . . . Parts Built . | . . . . . Authchips . | . . . . . Time . | . . . . . Total Part Build Rating . | . . . . . Parts Repaired 1 | . . . 1 . Time 26 | . . . 26 . Parts Recycled . | . . . . . Recycled Matter . | . . . . . Retrieved Matter . | . . . . . Retrieved Components . | . . . . . Parts Scanalyzed . | . . . . . Part Schematics Acquired . | . . . . . Parts Damaged . | . . . . . Bothacking | -11 -10 -9 -8 -8 ------------ Run | Yrd Mat Mat Mat Sto Used RIF Installer . | . . . . . Robots Hacked . | . . . . . Non-combat . | . . . . . Combat . | . . . . . Robot Hacks Applied . | . . . . . Relay Couplers Released . | . . . . . Fabnet Peak Effective % . | . . . . . Robots Rewired . | . . . . . Allies Hacked . | . . . . . Hacks Repelled . | . . . . . Allies | -11 -10 -9 -8 -8 -------- Run | Yrd Mat Mat Mat Sto Total Allies . | . . . . . Largest Group . | . . . . . Highest-Rated Group . | . . . . . Highest-Rated Ally . | . . . . . Total Orders . | . . . . . Ally Attacks . | . . . . . Total Damage . | . . . . . Kills . | . . . . . Allies Corrupted . | . . . . . Allies Melted . | . . . . . Intel | -11 -10 -9 -8 -8 ------- Run | Yrd Mat Mat Mat Sto Robot Analysis Total . | . . . . . Derelict Logs Recovered . | . . . . . Drone Launches . | . . . . . Drone Recoveries . | . . . . . Exploration | -11 -10 -9 -8 -8 ------------- Run | Yrd Mat Mat Mat Sto Turns Passed 1331 | 100 184 364 252 431 Spaces Moved 1104 | 74 190 351 198 291 Core 16 | 7 . . . 9 Treads . | . . . . . Legs . | . . . . . Wheels 1062 | 67 190 351 197 257 Hover . | . . . . . Flight 26 | . . . 1 25 Fastest Speed 50 | 50 80 80 80 50 Average Speed 90 | 82 80 80 81 119 Slowest Speed 360 | 90 80 80 280 360 Overloaded Moves . | . . . . . Propulsion Burnouts . | . . . . . Robots Hopped . | . . . . . Cave-ins Triggered . | . . . . . Exploration Rate (%) 26 | 3 42 33 21 31 Regions Visited 4 Branch Regions 1 Pre-discovered Areas . | . . . . . Known Exits Taken . | . . . . . Unknown Exits Taken 4 | 1 1 1 1 . Scrap Searched . | . . . . . Spaces Dug . | . . . . . Terrain Destroyed 138 | . 24 5 5 104 Melee . | . . . . . Projectile . | . . . . . AOE 138 | . 24 5 5 104 Terrain Rammed . | . . . . . Walls Destroyed . | . . . . . Machines Disabled . | . . . . . Actions | -11 -10 -9 -8 -8 --------- Run | Yrd Mat Mat Mat Sto Total 1314 | 95 203 401 274 341 Wait 29 | . . . 29 . Move 1101 | 74 189 350 197 291 Hop . | . . . . . Pick Up 30 | 6 2 8 10 4 Fast Attach 23 | 7 . 2 5 9 Attach 8 | . . 2 4 2 Detach 3 | . . . 2 1 Swap 14 | 1 1 9 1 2 Drop 27 | . 1 12 10 4 Fire 76 | 7 10 18 14 27 Melee . | . . . . . Ram 3 | . . . 2 1 Kick . | . . . . . Crush . | . . . . . Escape Stasis . | . . . . . Rewire . | . . . . . Trap . | . . . . . Miscellaneous . | . . . . . Route ------- -11/Scrapyard -10/Materials -9/Materials -8/Materials -8/Storage History --------- Turn | Location | Event 29 | -11/Scrapyard | Discovered new exit (range 14) 101 | -11/Scrapyard | Entered Materials 213 | -10/Materials | Discovered new exit (range 16) 285 | -10/Materials | Entered another Materials area 285 | -9/Materials | Evolved 2 slots: Propulsion x1, Utility x1 323 | -9/Materials | Build established: Mutant 606 | -9/Materials | Discovered new exit (range 15) 649 | -9/Materials | Entered another Materials area 649 | -8/Materials | Evolved 2 slots: Propulsion x2 772 | -8/Materials | Repaired Structural Scanner 850 | -8/Materials | Discovered new exit (range 16) 901 | -8/Materials | Entered Storage 929 | -8/Storage | Lost 7 parts (4n1u2w) 1266 | -8/Storage | Lost 8 parts (1p4n1u2w) 1272 | -8/Storage | Core integrity fell below 50% 1324 | -8/Storage | Core integrity fell below 20% 1332 | -8/Storage | Destroyed by G-47 Trooper with Particle Gun Last Messages --------------- 01241_ The unstable cave ceiling collapses. 01242_ R-06 Scavenger collects Heat Sink. 01242_ U-05 Engineer lays Concrete. 01246_ U-05 Engineer builds a Wall. 01248_ U-05 Engineer lays Concrete. 01249_ Acquired 18 matter. 01253_ K-01 Serf collects debris. 01263_ U-05 Engineer lays Concrete. 01264_ U-05 Engineer builds a Wall. 01266_ Slammed into U-05 Engineer. 01284_ Acquired Spread Laser. 01308_ R-06 Scavenger collects Tractor Beam. 01316_ R-06 Scavenger destroyed. 01318_ Acquired Com. Wheel. 01319_ Imp. Light Armor Plating destroyed. 01319_ Imp. Ion Engine destroyed. 01322_ Com. Wheel destroyed. 01324_ K-01 Serf collects debris. 01331_ Sml. Storage Unit destroyed. 01331_ Acquired Hacking Suite. Map ----- +----------------------------------------------------+ | | | ?????????????????????????????????????????????????? | | ?????????????????????????????????????????????????? | | ?????????????????????????????????????????????????? | | ?????????????????????????????????????????????????? | | ?????????????????????????????????????????????????? | | ?????????#####???????????????????????????????????? | | ???????########??????????????????????????????????? | | ########## ###??????????????????????????????????? | | ######### ###??????????????????????????????????? | | ## ###??????????????????????????????????? | | ## ##??????????????????????????????????? | | ## % ##??????????????????????????????????? | | ######## ###??????????????????????????????????? | | # ####?????????????????????? #### ? | | # # ##??????????????????????###+###### ? | | # ####??????????????########## ? | | # ##########????????########## ??? | | + ##########???????### ## ####? | | # + !!!!##???????### # # ## | | # # ##???????## # ## | | # # !!!!##???????## # *%! # | | ######### ##T#######????##### ## = | | ###"""### ## ################ # ! ! | | ###"T"### ! ###################+#### !% | | # *%*g ;!!@ k uu ! | | # !gg ###### ###### ####### # | | # # g ######### ## # #### "T | | """ + "" """ ##??######## ##### # "" | | """ # # "! " ##?????## # # | | """ # # "!= %" ##?????## ## ## ###### | | """ # # """""" ##?????## ######## ###### | | + # ?? ##?????## ######## ??? | | "T"#######+#####??######?????## #?????## ##### ?? | | """####### ##??######?????## #?????## ##### ? | | #####?###T ##?????????????## #?????##+#???????? | | #####?#### ###?????????????##/#????? ???????? | | ??????## !##????????????? ????????????????? | | ??????##!! !##?????????????? ????????????????? | | ??????##!! !!##?????????????? ??+?????????????? | | ??????##!! !!!##?????????????? ????????????????? | | ??????##########?????????????? ????????????????? | | ??????##########?????????????? ????????????????? | | ?????????????????????????????? ????????????????? | | ?????????????????????????????? ????????????????? | | ?????????????????????????????? ????????????????? | | ??????????????????????????????###????????????????? | | ?????????????????????????????????????????????????? | | ?????????????????????????????????????????????????? | | ?????????????????????????????????????????????????? | +----------------------------------------------------+ Best States ------------- Heat Dissipation 31 Energy Generation 14 Energy Capacity 265 Matter Stores 300 Matter Capacity 300 Sight Range 16 Terrain Scan Density 10 Armor Coverage 150 Evasion (%) 44 Offensive Hacking 10 Item Schematics ----------------- None Robot Schematics ------------------ None Fabricated ------------ Nothing Alien Tech Used ----------------- None Achievements -------------- None Challenges ------------ None Game ------ Seed ArcMetafieldShredder Manual? 0 Play Time 00:23:38 Cumulative 37.4 hours Start 2024.06.15 @ 22:08:21 End 2024.06.15 @ 22:38:12 Sessions 1 Manual Loads 0 Difficulty Rogue Special Mode None Game No. 36 Rogue 36 Adventurer 0 Explorer 0 Win Type - Total 0 Types 0/0/0/0/0/0/0/0/0 Lore% 27 Gallery% 34 Achievement% 30 Wizard Run 0 Options --------- Layout 1 ASCII 0 Keyboard 1 Movement Arrows Keybinds 0 Fullscreen 2 Font 24/Smallcaps Map View 50x35 Zoom Use 0% Tactical HUD 1 Map Filters NONE Filters NONE Steam 1 RUN: 2980d196-37dc-4edc-b9ea-3f71b8584a2e